{"text_format":"1","workbook":"xlsx","n_sheets":3,"sheets":["Master","UTILITY - ","UTILITY - Non86"],"not_rendered":{"charts":0,"images":0,"macros":1,"external_links":0,"defined_names":2,"comments":0,"pivot_tables":0},"unopened":[],"bounds":{"document_bytes":16777216,"sheet_cells":100000,"rows_first":2000,"rows_last":500,"rows_between":2000,"halvings":0,"cell_chars":16384,"cell_head_chars":4096},"cells_cut":0,"cells_raw":0,"read":"whole","date_system":"1900"}

{"sheet":"Master","index":0,"n_rows":15,"n_cols":3,"rows_kept":15,"cut":false,"hidden":false,"merged":[[0,1,2,6],[14,1,14,6]]}
[null,"Please use the Buttons to create your worksheet according to the type.  Use the bottom tabs for existing files."]
[]
[]
[]
[null,null,"   Create a New Worksheet - Chapter 86"]
[]
[]
[]
[null,null,"   Create a New Worksheet - Non 86"]
[]
[]
[]
[]
[]
[null,"This material content is in compliance with the Federal Highway Administration (FHWA) 23 U.S.C. § 313 – Buy America; 23 C.F.R. § 635.410 \n\n"]

{"sheet":"UTILITY - ","index":1,"n_rows":252,"n_cols":23,"rows_kept":252,"cut":false,"hidden":false,"merged":[[2,15,2,18],[2,5,2,8]]}
[null,null,null,null,"           ","           ",null,"           ","           ",null,"           ",null,"           ","           ",null,"           ",null,"           ","           "]
[null,"ESTIMATED UTILITY QUANTITIES"]
[null,null,null,null,null,"Project No. 1: ",null,null,null,null,"Project No. 2:",null,null,null,null,"Project No. 3:"]
[null,"ITEM NO.","DESCRIPTION","UNIT","UNIT PRICE","QUANTITY","% Utility","%Project","%Project","Amount","QUANTITY","% Utility","%Project","%Project","Amount","QUANTITY","% Utility","%Project","%Project","Amount","Project 1","Project 2","Project 3"]
[null,null,null,null,null,null,"Betterment","Public","Private","Betterment",null,"Betterment","Public","Private","Betterment",null,"Betterment","Public","Private","Betterment","Extension","Extension","Extension"]
[null,null,null,null,null,null,null,null,null,{"$f":"SUM(F6 * E6)","v":0},null,null,null,null,{"$f":"SUM(K6*E6)","v":0},null,null,null,null,{"$f":"SUM(E6 *P6)","v":0}]
[null,null,null,null,null,null,null,null,null,{"$f":"SUM(F7 * E7)","v":0},null,null,null,null,0,null,null,null,null,0]
[null,null,null,null,null,null,null,null,null,0,null,null,null,null,0,null,null,null,null,0]
[null,null,null,null,null,null,null,null,null,0,null,null,null,null,0,null,null,null,null,0]
[null,null,null,null,null,null,null,null,null,0,null,null,null,null,0,null,null,null,null,0]
[null,null,null,null,null,null,null,null,null,0,null,null,null,null,0,null,null,null,null,0]
[null,null,null,null,null,null,null,null,null,0,null,null,null,null,0,null,null,null,null,0]
[null,null,null,null,null,null,null,null,null,0,null,null,null,null,0,null,null,null,null,0]
[null,null,null,null,null,null,null,null,null,0,null,null,null,null,0,null,null,null,null,0]
[null,null,null,null,null,null,null,null,null,0,null,null,null,null,0,null,null,null,null,0]
[null,null,null,null,null,null,null,null,null,0,null,null,null,null,0,null,null,null,null,0]
[null,null,null,null,null,null,null,null,null,0,null,null,null,null,0,null,null,null,null,0]
[null,null,null,null,null,null,null,null,null,0,null,null,null,null,0,null,null,null,null,0]
[null,null,null,null,null,null,null,null,null,0,null,null,null,null,0,null,null,null,null,0]
[null,null,null,null,null,null,null,null,null,0,null,null,null,null,0,null,null,null,null,0]
[null,null,null,null,null,null,null,null,null,0,null,null,null,null,0,null,null,null,null,0]
[null,null,null,null,null,null,null,null,null,0,null,null,null,null,0,null,null,null,null,0]
[null,null,null,null,null,null,null,null,null,0,null,null,null,null,0,null,null,null,null,0]
[null,null,null,null,null,null,null,null,null,0,null,null,null,null,0,null,null,null,null,0]
[null,null,null,null,null,null,null,null,null,0,null,null,null,null,0,null,null,null,null,0]
[null,null,null,null,null,null,null,null,null,0,null,null,null,null,0,null,null,null,null,0]
[null,null,null,null,null,null,null,null,null,0,null,null,null,null,0,null,null,null,null,0]
[null,null,null,null,null,null,null,null,null,0,null,null,null,null,0,null,null,null,null,0]
[null,null,null,null,null,null,null,null,null,0,null,null,null,null,0,null,null,null,null,0]
[null,null,null,null,null,null,null,null,null,0,null,null,null,null,0,null,null,null,null,0]
[null,null,null,null,null,null,null,null,null,0,null,null,null,null,0,null,null,null,null,0]
[null,null,null,null,null,null,null,null,null,0,null,null,null,null,0,null,null,null,null,0]
[null,null,null,null,null,null,null,null,null,0,null,null,null,null,0,null,null,null,null,0]
[null,null,null,null,null,null,null,null,null,0,null,null,null,null,0,null,null,null,null,0]
[null,null,null,null,null,null,null,null,null,0,null,null,null,null,0,null,null,null,null,0]
[null,null,null,null,null,null,null,null,null,0,null,null,null,null,0,null,null,null,null,0]
[null,null,null,null,null,null,null,null,null,0,null,null,null,null,0,null,null,null,null,0]
[null,null,null,null,null,null,null,null,null,0,null,null,null,null,0,null,null,null,null,0]
[null,null,null,null,null,null,null,null,null,0,null,null,null,null,0,null,null,null,null,0]
[null,null,null,null,null,null,null,null,null,0,null,null,null,null,0,null,null,null,null,0]
[null,null,null,null,null,null,null,null,null,0,null,null,null,null,0,null,null,null,null,0]
[null,null,null,null,null,null,null,null,null,0,null,null,null,null,0,null,null,null,null,0]
[null,null,null,null,null,null,null,null,null,0,null,null,null,null,0,null,null,null,null,0]
[null,null,null,null,null,null,null,null,null,0,null,null,null,null,0,null,null,null,null,0]
[null,null,null,null,null,null,null,null,null,0,null,null,null,null,0,null,null,null,null,0]
[null,null,null,null,null,null,null,null,null,0,null,null,null,null,0,null,null,null,null,0]
[null,null,null,null,null,null,null,null,null,0,null,null,null,null,0,null,null,null,null,0]
[null,null,null,null,null,null,null,null,null,0,null,null,null,null,0,null,null,null,null,0]
[null,null,null,null,null,null,null,null,null,0,null,null,null,null,0,null,null,null,null,0]
[null,null,null,null,null,null,null,null,null,0,null,null,null,null,0,null,null,null,null,0]
[null,null,null,null,null,null,null,null,null,0,null,null,null,null,0,null,null,null,null,0]
[null,null,null,null,null,null,null,null,null,0,null,null,null,null,0,null,null,null,null,0]
[null,null,null,null,null,null,null,null,null,0,null,null,null,null,0,null,null,null,null,0]
[null,null,null,null,null,null,null,null,null,0,null,null,null,null,0,null,null,null,null,0]
[null,null,null,null,null,null,null,null,null,0,null,null,null,null,0,null,null,null,null,0]
[null,null,null,null,null,null,null,null,null,0,null,null,null,null,0,null,null,null,null,0]
[null,null,null,null,null,null,null,null,null,0,null,null,null,null,0,null,null,null,null,0]
[null,null,null,null,null,null,null,null,null,0,null,null,null,null,0,null,null,null,null,0]
[null,null,null,null,null,null,null,null,null,0,null,null,null,null,0,null,null,null,null,0]
[null,null,null,null,null,null,null,null,null,0,null,null,null,null,0,null,null,null,null,0]
[null,null,null,null,null,null,null,null,null,0,null,null,null,null,0,null,null,null,null,0]
[null,null,null,null,null,null,null,null,null,0,null,null,null,null,0,null,null,null,null,0]
[null,null,null,null,null,null,null,null,null,0,null,null,null,null,0,null,null,null,null,0]
[null,null,null,null,null,null,null,null,null,0,null,null,null,null,0,null,null,null,null,0]
[null,null,null,null,null,null,null,null,null,0,null,null,null,null,0,null,null,null,null,0]
[null,null,null,null,null,null,null,null,null,0,null,null,null,null,0,null,null,null,null,0]
[null,null,null,null,null,null,null,null,null,0,null,null,null,null,0,null,null,null,null,0]
[null,null,null,null,null,null,null,null,null,0,null,null,null,null,0,null,null,null,null,0]
[null,null,null,null,null,null,null,null,null,0,null,null,null,null,0,null,null,null,null,0]
[null,null,null,null,null,null,null,null,null,0,null,null,null,null,{"$f":"SUM(K70*E70)","v":0},null,null,null,null,{"$f":"SUM(E70 *P70)","v":0}]
[null,null,null,null,null,null,null,null,null,{"$f":"SUM(F71 * E71)","v":0},null,null,null,null,0,null,null,null,null,0]
[null,null,null,null,null,null,null,null,null,0,null,null,null,null,0,null,null,null,null,0]
[null,null,null,null,null,null,null,null,null,0,null,null,null,null,0,null,null,null,null,0]
[null,null,null,null,null,null,null,null,null,0,null,null,null,null,0,null,null,null,null,0]
[null,null,null,null,null,null,null,null,null,0,null,null,null,null,0,null,null,null,null,0]
[null,null,null,null,null,null,null,null,null,0,null,null,null,null,0,null,null,null,null,0]
[null,null,null,null,null,null,null,null,null,0,null,null,null,null,0,null,null,null,null,0]
[null,null,null,null,null,null,null,null,null,0,null,null,null,null,0,null,null,null,null,0]
[null,null,null,null,null,null,null,null,null,0,null,null,null,null,0,null,null,null,null,0]
[null,null,null,null,null,null,null,null,null,0,null,null,null,null,0,null,null,null,null,0]
[null,null,null,null,null,null,null,null,null,0,null,null,null,null,0,null,null,null,null,0]
[null,null,null,null,null,null,null,null,null,0,null,null,null,null,0,null,null,null,null,0]
[null,null,null,null,null,null,null,null,null,0,null,null,null,null,0,null,null,null,null,0]
[null,null,null,null,null,null,null,null,null,0,null,null,null,null,0,null,null,null,null,0]
[null,null,null,null,null,null,null,null,null,0,null,null,null,null,0,null,null,null,null,0]
[null,null,null,null,null,null,null,null,null,0,null,null,null,null,0,null,null,null,null,0]
[null,null,null,null,null,null,null,null,null,0,null,null,null,null,0,null,null,null,null,0]
[null,null,null,null,null,null,null,null,null,0,null,null,null,null,0,null,null,null,null,0]
[null,null,null,null,null,null,null,null,null,0,null,null,null,null,0,null,null,null,null,0]
[null,null,null,null,null,null,null,null,null,0,null,null,null,null,0,null,null,null,null,0]
[null,null,null,null,null,null,null,null,null,0,null,null,null,null,0,null,null,null,null,0]
[null,null,null,null,null,null,null,null,null,0,null,null,null,null,0,null,null,null,null,0]
[null,null,null,null,null,null,null,null,null,0,null,null,null,null,0,null,null,null,null,0]
[null,null,null,null,null,null,null,null,null,0,null,null,null,null,0,null,null,null,null,0]
[null,null,null,null,null,null,null,null,null,0,null,null,null,null,0,null,null,null,null,0]
[null,null,null,null,null,null,null,null,null,0,null,null,null,null,0,null,null,null,null,0]
[null,null,null,null,null,null,null,null,null,0,null,null,null,null,0,null,null,null,null,0]
[null,null,null,null,null,null,null,null,null,0,null,null,null,null,0,null,null,null,null,0]
[null,null,null,null,null,null,null,null,null,0,null,null,null,null,0,null,null,null,null,0]
[null,null,null,null,null,null,null,null,null,0,null,null,null,null,0,null,null,null,null,0]
[null,null,null,null,null,null,null,null,null,0,null,null,null,null,0,null,null,null,null,0]
[null,null,null,null,null,null,null,null,null,0,null,null,null,null,0,null,null,null,null,0]
[null,null,null,null,null,null,null,null,null,0,null,null,null,null,0,null,null,null,null,0]
[null,null,null,null,null,null,null,null,null,0,null,null,null,null,0,null,null,null,null,0]
[null,null,null,null,null,null,null,null,null,0,null,null,null,null,0,null,null,null,null,0]
[null,null,null,null,null,null,null,null,null,0,null,null,null,null,0,null,null,null,null,0]
[null,null,null,null,null,null,null,null,null,0,null,null,null,null,0,null,null,null,null,0]
[null,null,null,null,null,null,null,null,null,0,null,null,null,null,0,null,null,null,null,0]
[null,null,null,null,null,null,null,null,null,0,null,null,null,null,0,null,null,null,null,0]
[null,null,null,null,null,null,null,null,null,0,null,null,null,null,0,null,null,null,null,0]
[null,null,null,null,null,null,null,null,null,0,null,null,null,null,0,null,null,null,null,0]
[null,null,null,null,null,null,null,null,null,0,null,null,null,null,0,null,null,null,null,0]
[null,null,null,null,null,null,null,null,null,0,null,null,null,null,0,null,null,null,null,0]
[null,null,null,null,null,null,null,null,null,0,null,null,null,null,0,null,null,null,null,0]
[null,null,null,null,null,null,null,null,null,0,null,null,null,null,0,null,null,null,null,0]
[null,null,null,null,null,null,null,null,null,0,null,null,null,null,0,null,null,null,null,0]
[null,null,null,null,null,null,null,null,null,0,null,null,null,null,0,null,null,null,null,0]
[null,null,null,null,null,null,null,null,null,0,null,null,null,null,0,null,null,null,null,0]
[null,null,null,null,null,null,null,null,null,0,null,null,null,null,0,null,null,null,null,0]
[null,null,null,null,null,null,null,null,null,0,null,null,null,null,0,null,null,null,null,0]
[null,null,null,null,null,null,null,null,null,0,null,null,null,null,0,null,null,null,null,0]
[null,null,null,null,null,null,null,null,null,0,null,null,null,null,0,null,null,null,null,0]
[null,null,null,null,null,null,null,null,null,0,null,null,null,null,0,null,null,null,null,0]
[null,null,null,null,null,null,null,null,null,0,null,null,null,null,0,null,null,null,null,0]
[null,null,null,null,null,null,null,null,null,0,null,null,null,null,0,null,null,null,null,0]
[null,null,null,null,null,null,null,null,null,0,null,null,null,null,0,null,null,null,null,0]
[null,null,null,null,null,null,null,null,null,0,null,null,null,null,0,null,null,null,null,0]
[null,null,null,null,null,null,null,null,null,0,null,null,null,null,0,null,null,null,null,0]
[null,null,null,null,null,null,null,null,null,0,null,null,null,null,0,null,null,null,null,0]
[null,null,null,null,null,null,null,null,null,0,null,null,null,null,0,null,null,null,null,0]
[null,null,null,null,null,null,null,null,null,0,null,null,null,null,0,null,null,null,null,0]
[null,null,null,null,null,null,null,null,null,0,null,null,null,null,0,null,null,null,null,0]
[null,null,null,null,null,null,null,null,null,0,null,null,null,null,0,null,null,null,null,0]
[null,null,null,null,null,null,null,null,null,0,null,null,null,null,{"$f":"SUM(K134*E134)","v":0},null,null,null,null,{"$f":"SUM(E134 *P134)","v":0}]
[null,null,null,null,null,null,null,null,null,{"$f":"SUM(F135 * E135)","v":0},null,null,null,null,0,null,null,null,null,0]
[null,null,null,null,null,null,null,null,null,0,null,null,null,null,0,null,null,null,null,0]
[null,null,null,null,null,null,null,null,null,0,null,null,null,null,0,null,null,null,null,0]
[null,null,null,null,null,null,null,null,null,0,null,null,null,null,0,null,null,null,null,0]
[null,null,null,null,null,null,null,null,null,0,null,null,null,null,0,null,null,null,null,0]
[null,null,null,null,null,null,null,null,null,0,null,null,null,null,0,null,null,null,null,0]
[null,null,null,null,null,null,null,null,null,0,null,null,null,null,0,null,null,null,null,0]
[null,null,null,null,null,null,null,null,null,0,null,null,null,null,0,null,null,null,null,0]
[null,null,null,null,null,null,null,null,null,0,null,null,null,null,0,null,null,null,null,0]
[null,null,null,null,null,null,null,null,null,0,null,null,null,null,0,null,null,null,null,0]
[null,null,null,null,null,null,null,null,null,0,null,null,null,null,0,null,null,null,null,0]
[null,null,null,null,null,null,null,null,null,0,null,null,null,null,0,null,null,null,null,0]
[null,null,null,null,null,null,null,null,null,0,null,null,null,null,0,null,null,null,null,0]
[null,null,null,null,null,null,null,null,null,0,null,null,null,null,0,null,null,null,null,0]
[null,null,null,null,null,null,null,null,null,0,null,null,null,null,0,null,null,null,null,0]
[null,null,null,null,null,null,null,null,null,0,null,null,null,null,0,null,null,null,null,0]
[null,null,null,null,null,null,null,null,null,0,null,null,null,null,0,null,null,null,null,0]
[null,null,null,null,null,null,null,null,null,0,null,null,null,null,0,null,null,null,null,0]
[null,null,null,null,null,null,null,null,null,0,null,null,null,null,0,null,null,null,null,0]
[null,null,null,null,null,null,null,null,null,0,null,null,null,null,0,null,null,null,null,0]
[null,null,null,null,null,null,null,null,null,0,null,null,null,null,0,null,null,null,null,0]
[null,null,null,null,null,null,null,null,null,0,null,null,null,null,0,null,null,null,null,0]
[null,null,null,null,null,null,null,null,null,0,null,null,null,null,0,null,null,null,null,0]
[null,null,null,null,null,null,null,null,null,0,null,null,null,null,0,null,null,null,null,0]
[null,null,null,null,null,null,null,null,null,0,null,null,null,null,0,null,null,null,null,0]
[null,null,null,null,null,null,null,null,null,0,null,null,null,null,0,null,null,null,null,0]
[null,null,null,null,null,null,null,null,null,0,null,null,null,null,0,null,null,null,null,0]
[null,null,null,null,null,null,null,null,null,0,null,null,null,null,0,null,null,null,null,0]
[null,null,null,null,null,null,null,null,null,0,null,null,null,null,0,null,null,null,null,0]
[null,null,null,null,null,null,null,null,null,0,null,null,null,null,0,null,null,null,null,0]
[null,null,null,null,null,null,null,null,null,0,null,null,null,null,0,null,null,null,null,0]
[null,null,null,null,null,null,null,null,null,0,null,null,null,null,0,null,null,null,null,0]
[null,null,null,null,null,null,null,null,null,0,null,null,null,null,0,null,null,null,null,0]
[null,null,null,null,null,null,null,null,null,0,null,null,null,null,0,null,null,null,null,0]
[null,null,null,null,null,null,null,null,null,0,null,null,null,null,0,null,null,null,null,0]
[null,null,null,null,null,null,null,null,null,0,null,null,null,null,0,null,null,null,null,0]
[null,null,null,null,null,null,null,null,null,0,null,null,null,null,0,null,null,null,null,0]
[null,null,null,null,null,null,null,null,null,0,null,null,null,null,0,null,null,null,null,0]
[null,null,null,null,null,null,null,null,null,0,null,null,null,null,0,null,null,null,null,0]
[null,null,null,null,null,null,null,null,null,0,null,null,null,null,0,null,null,null,null,0]
[null,null,null,null,null,null,null,null,null,0,null,null,null,null,0,null,null,null,null,0]
[null,null,null,null,null,null,null,null,null,0,null,null,null,null,0,null,null,null,null,0]
[null,null,null,null,null,null,null,null,null,0,null,null,null,null,0,null,null,null,null,0]
[null,null,null,null,null,null,null,null,null,0,null,null,null,null,0,null,null,null,null,0]
[null,null,null,null,null,null,null,null,null,0,null,null,null,null,0,null,null,null,null,0]
[null,null,null,null,null,null,null,null,null,0,null,null,null,null,0,null,null,null,null,0]
[null,null,null,null,null,null,null,null,null,0,null,null,null,null,0,null,null,null,null,0]
[null,null,null,null,null,null,null,null,null,0,null,null,null,null,0,null,null,null,null,0]
[null,null,null,null,null,null,null,null,null,0,null,null,null,null,0,null,null,null,null,0]
[null,null,null,null,null,null,null,null,null,0,null,null,null,null,0,null,null,null,null,0]
[null,null,null,null,null,null,null,null,null,0,null,null,null,null,0,null,null,null,null,0]
[null,null,null,null,null,null,null,null,null,0,null,null,null,null,0,null,null,null,null,0]
[null,null,null,null,null,null,null,null,null,0,null,null,null,null,0,null,null,null,null,0]
[null,null,null,null,null,null,null,null,null,0,null,null,null,null,0,null,null,null,null,0]
[null,null,null,null,null,null,null,null,null,0,null,null,null,null,0,null,null,null,null,0]
[null,null,null,null,null,null,null,null,null,0,null,null,null,null,0,null,null,null,null,0]
[null,null,null,null,null,null,null,null,null,0,null,null,null,null,0,null,null,null,null,0]
[null,null,null,null,null,null,null,null,null,0,null,null,null,null,0,null,null,null,null,0]
[null,null,null,null,null,null,null,null,null,0,null,null,null,null,0,null,null,null,null,0]
[null,null,null,null,null,null,null,null,null,0,null,null,null,null,0,null,null,null,null,0]
[null,null,null,null,null,null,null,null,null,0,null,null,null,null,0,null,null,null,null,0]
[null,null,null,null,null,null,null,null,null,0,null,null,null,null,0,null,null,null,null,0]
[null,null,null,null,null,null,null,null,null,0,null,null,null,null,0,null,null,null,null,0]
[null,null,null,null,null,null,null,null,null,0,null,null,null,null,{"$f":"SUM(K198*E198)","v":0},null,null,null,null,{"$f":"SUM(E198 *P198)","v":0}]
[null,null,null,null,null,null,null,null,null,{"$f":"SUM(F199 * E199)","v":0},null,null,null,null,0,null,null,null,null,0]
[null,null,null,null,null,null,null,null,null,0,null,null,null,null,0,null,null,null,null,0]
[null,null,null,null,null,null,null,null,null,0,null,null,null,null,0,null,null,null,null,0]
[null,null,null,null,null,null,null,null,null,0,null,null,null,null,0,null,null,null,null,0]
[null,null,null,null,null,null,null,null,null,0,null,null,null,null,0,null,null,null,null,0]
[null,null,null,null,null,null,null,null,null,0,null,null,null,null,0,null,null,null,null,0]
[null,null,null,null,null,null,null,null,null,0,null,null,null,null,0,null,null,null,null,0]
[null,null,null,null,null,null,null,null,null,0,null,null,null,null,0,null,null,null,null,0]
[null,null,null,null,null,null,null,null,null,0,null,null,null,null,0,null,null,null,null,0]
[null,null,null,null,null,null,null,null,null,0,null,null,null,null,0,null,null,null,null,0]
[null,null,null,null,null,null,null,null,null,0,null,null,null,null,0,null,null,null,null,0]
[null,null,null,null,null,null,null,null,null,0,null,null,null,null,0,null,null,null,null,0]
[null,null,null,null,null,null,null,null,null,0,null,null,null,null,0,null,null,null,null,0]
[null,null,null,null,null,null,null,null,null,0,null,null,null,null,0,null,null,null,null,0]
[null,null,null,null,null,null,null,null,null,0,null,null,null,null,0,null,null,null,null,0]
[null,null,null,null,null,null,null,null,null,0,null,null,null,null,0,null,null,null,null,0]
[null,null,null,null,null,null,null,null,null,0,null,null,null,null,0,null,null,null,null,0]
[null,null,null,null,null,null,null,null,null,0,null,null,null,null,0,null,null,null,null,0]
[null,null,null,null,null,null,null,null,null,0,null,null,null,null,0,null,null,null,null,0]
[null,null,null,null,null,null,null,null,null,0,null,null,null,null,0,null,null,null,null,0]
[null,null,null,null,null,null,null,null,null,0,null,null,null,null,0,null,null,null,null,0]
[null,null,null,null,null,null,null,null,null,0,null,null,null,null,0,null,null,null,null,0]
[null,null,null,null,null,null,null,null,null,0,null,null,null,null,0,null,null,null,null,0]
[null,null,null,null,null,null,null,null,null,0,null,null,null,null,0,null,null,null,null,0]
[null,null,null,null,null,null,null,null,null,0,null,null,null,null,0,null,null,null,null,0]
[null,null,null,null,null,null,null,null,null,0,null,null,null,null,0,null,null,null,null,0]
[null,null,null,null,null,null,null,null,null,0,null,null,null,null,0,null,null,null,null,0]
[null,null,null,null,null,null,null,null,null,0,null,null,null,null,0,null,null,null,null,0]
[null,null,null,null,null,null,null,null,null,0,null,null,null,null,0,null,null,null,null,0]
[null,null,null,null,null,null,null,null,null,0,null,null,null,null,0,null,null,null,null,0]
[null,null,null,null,null,null,null,null,null,0,null,null,null,null,0,null,null,null,null,0]
[null,null,null,null,null,null,null,null,null,0,null,null,null,null,0,null,null,null,null,0]
[null,null,null,null,null,null,null,null,null,0,null,null,null,null,0,null,null,null,null,0]
[null,null,null,null,null,null,null,null,null,0,null,null,null,null,0,null,null,null,null,0]
[null,null,null,null,null,null,null,null,null,0,null,null,null,null,0,null,null,null,null,0]
[null,null,null,null,null,null,null,null,null,0,null,null,null,null,0,null,null,null,null,0]
[null,null,null,null,null,null,null,null,null,0,null,null,null,null,0,null,null,null,null,0]
[null,null,null,null,null,null,null,null,null,0,null,null,null,null,0,null,null,null,null,0]
[null,null,null,null,null,null,null,null,null,0,null,null,null,null,0,null,null,null,null,0]
[null,null,null,null,null,null,null,null,null,0,null,null,null,null,0,null,null,null,null,0]
[null,null,null,null,null,null,null,null,null,0,null,null,null,null,0,null,null,null,null,0]
[null,null,null,null,null,null,null,null,null,0,null,null,null,null,0,null,null,null,null,0]
[null,null,null,null,null,null,null,null,null,0,null,null,null,null,0,null,null,null,null,0]
[null,null,null,null,null,null,null,null,null,0,null,null,null,null,0,null,null,null,null,0]
[null,null,null,null,null,null,null,null,null,0,null,null,null,null,0,null,null,null,null,0]
[null,null,null,null,null,null,null,null,null,0,null,null,null,null,0,null,null,null,null,0]
[null,null,null,null,null,null,null,null,null,0,null,null,null,null,0,null,null,null,null,0]
[null,null,null,null,null,null,null,null,null,0,null,null,null,null,0,null,null,null,null,0]
[null,null,null,null,null,null,null,null,null,0,null,null,null,null,0,null,null,null,null,0]
[null,null,null,null,null,null,null,null,null,0,null,null,null,null,0,null,null,null,null,0]
[null,null,null,null,null,null,null,null,null,0,null,null,null,null,0,null,null,null,null,0]
[null,null,null,null,null,null,null,null,null,0,null,null,null,null,0,null,null,null,null,0]
[]
[null,null,null,null,null,null,null,null,null,{"$f":"SUM(J6:J250)","v":0},null,null,null,null,{"$f":"SUM(O6:O250)","v":0},null,null,null,null,{"$f":"SUM(T6:T250)","v":0}]

{"sheet":"UTILITY - Non86","index":2,"n_rows":252,"n_cols":23,"rows_kept":252,"cut":false,"hidden":false,"merged":[[2,15,2,18],[2,5,2,8]]}
[null,null,null,null,"           ","           ",null,"           ","           ",null,"           ","           ","           ","           ",null,"           ","           ","           ","           "]
[null,"ESTIMATED UTILITY QUANTITIES"]
[null,null,null,null,null,"Project No. 1: ",null,null,null,null,"Project No. 2:",null,null,null,null,"Project No. 3:"]
[null,"ITEM NO.","DESCRIPTION","UNIT","UNIT PRICE","QUANTITY","% Utility","%Project","%Project","Amount","QUANTITY","% Utility","%Project","%Project","Amount","QUANTITY","% Utility","%Project","%Project","Amount","Project 1","Project 2","Project 3"]
[null,null,null,null,null,null,"Betterment","Public","Private","Betterment",null,"Betterment","Public","Private","Betterment",null,"Betterment","Public","Private","Betterment","Extension","Extension","Extension"]
[null,null,null,null,null,null,null,null,null,{"$f":"SUM(F6 * E6)","v":0},null,null,null,null,{"$f":"SUM(K6*E6)","v":0},null,null,null,null,{"$f":"SUM(E6 *P6)","v":0}]
[null,null,null,null,null,null,null,null,null,{"$f":"SUM(F7 * E7)","v":0},null,null,null,null,0,null,null,null,null,0]
[null,null,null,null,null,null,null,null,null,0,null,null,null,null,0,null,null,null,null,0]
[null,null,null,null,null,null,null,null,null,0,null,null,null,null,0,null,null,null,null,0]
[null,null,null,null,null,null,null,null,null,0,null,null,null,null,0,null,null,null,null,0]
[null,null,null,null,null,null,null,null,null,0,null,null,null,null,0,null,null,null,null,0]
[null,null,null,null,null,null,null,null,null,0,null,null,null,null,0,null,null,null,null,0]
[null,null,null,null,null,null,null,null,null,0,null,null,null,null,0,null,null,null,null,0]
[null,null,null,null,null,null,null,null,null,0,null,null,null,null,0,null,null,null,null,0]
[null,null,null,null,null,null,null,null,null,0,null,null,null,null,0,null,null,null,null,0]
[null,null,null,null,null,null,null,null,null,0,null,null,null,null,0,null,null,null,null,0]
[null,null,null,null,null,null,null,null,null,0,null,null,null,null,0,null,null,null,null,0]
[null,null,null,null,null,null,null,null,null,0,null,null,null,null,0,null,null,null,null,0]
[null,null,null,null,null,null,null,null,null,0,null,null,null,null,0,null,null,null,null,0]
[null,null,null,null,null,null,null,null,null,0,null,null,null,null,0,null,null,null,null,0]
[null,null,null,null,null,null,null,null,null,0,null,null,null,null,0,null,null,null,null,0]
[null,null,null,null,null,null,null,null,null,0,null,null,null,null,0,null,null,null,null,0]
[null,null,null,null,null,null,null,null,null,0,null,null,null,null,0,null,null,null,null,0]
[null,null,null,null,null,null,null,null,null,0,null,null,null,null,0,null,null,null,null,0]
[null,null,null,null,null,null,null,null,null,0,null,null,null,null,0,null,null,null,null,0]
[null,null,null,null,null,null,null,null,null,0,null,null,null,null,0,null,null,null,null,0]
[null,null,null,null,null,null,null,null,null,0,null,null,null,null,0,null,null,null,null,0]
[null,null,null,null,null,null,null,null,null,0,null,null,null,null,0,null,null,null,null,0]
[null,null,null,null,null,null,null,null,null,0,null,null,null,null,0,null,null,null,null,0]
[null,null,null,null,null,null,null,null,null,0,null,null,null,null,0,null,null,null,null,0]
[null,null,null,null,null,null,null,null,null,0,null,null,null,null,0,null,null,null,null,0]
[null,null,null,null,null,null,null,null,null,0,null,null,null,null,0,null,null,null,null,0]
[null,null,null,null,null,null,null,null,null,0,null,null,null,null,0,null,null,null,null,0]
[null,null,null,null,null,null,null,null,null,0,null,null,null,null,0,null,null,null,null,0]
[null,null,null,null,null,null,null,null,null,0,null,null,null,null,0,null,null,null,null,0]
[null,null,null,null,null,null,null,null,null,0,null,null,null,null,0,null,null,null,null,0]
[null,null,null,null,null,null,null,null,null,0,null,null,null,null,0,null,null,null,null,0]
[null,null,null,null,null,null,null,null,null,0,null,null,null,null,0,null,null,null,null,0]
[null,null,null,null,null,null,null,null,null,0,null,null,null,null,0,null,null,null,null,0]
[null,null,null,null,null,null,null,null,null,0,null,null,null,null,0,null,null,null,null,0]
[null,null,null,null,null,null,null,null,null,0,null,null,null,null,0,null,null,null,null,0]
[null,null,null,null,null,null,null,null,null,0,null,null,null,null,0,null,null,null,null,0]
[null,null,null,null,null,null,null,null,null,0,null,null,null,null,0,null,null,null,null,0]
[null,null,null,null,null,null,null,null,null,0,null,null,null,null,0,null,null,null,null,0]
[null,null,null,null,null,null,null,null,null,0,null,null,null,null,0,null,null,null,null,0]
[null,null,null,null,null,null,null,null,null,0,null,null,null,null,0,null,null,null,null,0]
[null,null,null,null,null,null,null,null,null,0,null,null,null,null,0,null,null,null,null,0]
[null,null,null,null,null,null,null,null,null,0,null,null,null,null,0,null,null,null,null,0]
[null,null,null,null,null,null,null,null,null,0,null,null,null,null,0,null,null,null,null,0]
[null,null,null,null,null,null,null,null,null,0,null,null,null,null,0,null,null,null,null,0]
[null,null,null,null,null,null,null,null,null,0,null,null,null,null,0,null,null,null,null,0]
[null,null,null,null,null,null,null,null,null,0,null,null,null,null,0,null,null,null,null,0]
[null,null,null,null,null,null,null,null,null,0,null,null,null,null,0,null,null,null,null,0]
[null,null,null,null,null,null,null,null,null,0,null,null,null,null,0,null,null,null,null,0]
[null,null,null,null,null,null,null,null,null,0,null,null,null,null,0,null,null,null,null,0]
[null,null,null,null,null,null,null,null,null,0,null,null,null,null,0,null,null,null,null,0]
[null,null,null,null,null,null,null,null,null,0,null,null,null,null,0,null,null,null,null,0]
[null,null,null,null,null,null,null,null,null,0,null,null,null,null,0,null,null,null,null,0]
[null,null,null,null,null,null,null,null,null,0,null,null,null,null,0,null,null,null,null,0]
[null,null,null,null,null,null,null,null,null,0,null,null,null,null,0,null,null,null,null,0]
[null,null,null,null,null,null,null,null,null,0,null,null,null,null,0,null,null,null,null,0]
[null,null,null,null,null,null,null,null,null,0,null,null,null,null,0,null,null,null,null,0]
[null,null,null,null,null,null,null,null,null,0,null,null,null,null,0,null,null,null,null,0]
[null,null,null,null,null,null,null,null,null,0,null,null,null,null,0,null,null,null,null,0]
[null,null,null,null,null,null,null,null,null,0,null,null,null,null,0,null,null,null,null,0]
[null,null,null,null,null,null,null,null,null,0,null,null,null,null,0,null,null,null,null,0]
[null,null,null,null,null,null,null,null,null,0,null,null,null,null,0,null,null,null,null,0]
[null,null,null,null,null,null,null,null,null,0,null,null,null,null,0,null,null,null,null,0]
[null,null,null,null,null,null,null,null,null,0,null,null,null,null,0,null,null,null,null,0]
[null,null,null,null,null,null,null,null,null,0,null,null,null,null,{"$f":"SUM(K70*E70)","v":0},null,null,null,null,{"$f":"SUM(E70 *P70)","v":0}]
[null,null,null,null,null,null,null,null,null,{"$f":"SUM(F71 * E71)","v":0},null,null,null,null,0,null,null,null,null,0]
[null,null,null,null,null,null,null,null,null,0,null,null,null,null,0,null,null,null,null,0]
[null,null,null,null,null,null,null,null,null,0,null,null,null,null,0,null,null,null,null,0]
[null,null,null,null,null,null,null,null,null,0,null,null,null,null,0,null,null,null,null,0]
[null,null,null,null,null,null,null,null,null,0,null,null,null,null,0,null,null,null,null,0]
[null,null,null,null,null,null,null,null,null,0,null,null,null,null,0,null,null,null,null,0]
[null,null,null,null,null,null,null,null,null,0,null,null,null,null,0,null,null,null,null,0]
[null,null,null,null,null,null,null,null,null,0,null,null,null,null,0,null,null,null,null,0]
[null,null,null,null,null,null,null,null,null,0,null,null,null,null,0,null,null,null,null,0]
[null,null,null,null,null,null,null,null,null,0,null,null,null,null,0,null,null,null,null,0]
[null,null,null,null,null,null,null,null,null,0,null,null,null,null,0,null,null,null,null,0]
[null,null,null,null,null,null,null,null,null,0,null,null,null,null,0,null,null,null,null,0]
[null,null,null,null,null,null,null,null,null,0,null,null,null,null,0,null,null,null,null,0]
[null,null,null,null,null,null,null,null,null,0,null,null,null,null,0,null,null,null,null,0]
[null,null,null,null,null,null,null,null,null,0,null,null,null,null,0,null,null,null,null,0]
[null,null,null,null,null,null,null,null,null,0,null,null,null,null,0,null,null,null,null,0]
[null,null,null,null,null,null,null,null,null,0,null,null,null,null,0,null,null,null,null,0]
[null,null,null,null,null,null,null,null,null,0,null,null,null,null,0,null,null,null,null,0]
[null,null,null,null,null,null,null,null,null,0,null,null,null,null,0,null,null,null,null,0]
[null,null,null,null,null,null,null,null,null,0,null,null,null,null,0,null,null,null,null,0]
[null,null,null,null,null,null,null,null,null,0,null,null,null,null,0,null,null,null,null,0]
[null,null,null,null,null,null,null,null,null,0,null,null,null,null,0,null,null,null,null,0]
[null,null,null,null,null,null,null,null,null,0,null,null,null,null,0,null,null,null,null,0]
[null,null,null,null,null,null,null,null,null,0,null,null,null,null,0,null,null,null,null,0]
[null,null,null,null,null,null,null,null,null,0,null,null,null,null,0,null,null,null,null,0]
[null,null,null,null,null,null,null,null,null,0,null,null,null,null,0,null,null,null,null,0]
[null,null,null,null,null,null,null,null,null,0,null,null,null,null,0,null,null,null,null,0]
[null,null,null,null,null,null,null,null,null,0,null,null,null,null,0,null,null,null,null,0]
[null,null,null,null,null,null,null,null,null,0,null,null,null,null,0,null,null,null,null,0]
[null,null,null,null,null,null,null,null,null,0,null,null,null,null,0,null,null,null,null,0]
[null,null,null,null,null,null,null,null,null,0,null,null,null,null,0,null,null,null,null,0]
[null,null,null,null,null,null,null,null,null,0,null,null,null,null,0,null,null,null,null,0]
[null,null,null,null,null,null,null,null,null,0,null,null,null,null,0,null,null,null,null,0]
[null,null,null,null,null,null,null,null,null,0,null,null,null,null,0,null,null,null,null,0]
[null,null,null,null,null,null,null,null,null,0,null,null,null,null,0,null,null,null,null,0]
[null,null,null,null,null,null,null,null,null,0,null,null,null,null,0,null,null,null,null,0]
[null,null,null,null,null,null,null,null,null,0,null,null,null,null,0,null,null,null,null,0]
[null,null,null,null,null,null,null,null,null,0,null,null,null,null,0,null,null,null,null,0]
[null,null,null,null,null,null,null,null,null,0,null,null,null,null,0,null,null,null,null,0]
[null,null,null,null,null,null,null,null,null,0,null,null,null,null,0,null,null,null,null,0]
[null,null,null,null,null,null,null,null,null,0,null,null,null,null,0,null,null,null,null,0]
[null,null,null,null,null,null,null,null,null,0,null,null,null,null,0,null,null,null,null,0]
[null,null,null,null,null,null,null,null,null,0,null,null,null,null,0,null,null,null,null,0]
[null,null,null,null,null,null,null,null,null,0,null,null,null,null,0,null,null,null,null,0]
[null,null,null,null,null,null,null,null,null,0,null,null,null,null,0,null,null,null,null,0]
[null,null,null,null,null,null,null,null,null,0,null,null,null,null,0,null,null,null,null,0]
[null,null,null,null,null,null,null,null,null,0,null,null,null,null,0,null,null,null,null,0]
[null,null,null,null,null,null,null,null,null,0,null,null,null,null,0,null,null,null,null,0]
[null,null,null,null,null,null,null,null,null,0,null,null,null,null,0,null,null,null,null,0]
[null,null,null,null,null,null,null,null,null,0,null,null,null,null,0,null,null,null,null,0]
[null,null,null,null,null,null,null,null,null,0,null,null,null,null,0,null,null,null,null,0]
[null,null,null,null,null,null,null,null,null,0,null,null,null,null,0,null,null,null,null,0]
[null,null,null,null,null,null,null,null,null,0,null,null,null,null,0,null,null,null,null,0]
[null,null,null,null,null,null,null,null,null,0,null,null,null,null,0,null,null,null,null,0]
[null,null,null,null,null,null,null,null,null,0,null,null,null,null,0,null,null,null,null,0]
[null,null,null,null,null,null,null,null,null,0,null,null,null,null,0,null,null,null,null,0]
[null,null,null,null,null,null,null,null,null,0,null,null,null,null,0,null,null,null,null,0]
[null,null,null,null,null,null,null,null,null,0,null,null,null,null,0,null,null,null,null,0]
[null,null,null,null,null,null,null,null,null,0,null,null,null,null,0,null,null,null,null,0]
[null,null,null,null,null,null,null,null,null,0,null,null,null,null,0,null,null,null,null,0]
[null,null,null,null,null,null,null,null,null,0,null,null,null,null,0,null,null,null,null,0]
[null,null,null,null,null,null,null,null,null,0,null,null,null,null,0,null,null,null,null,0]
[null,null,null,null,null,null,null,null,null,0,null,null,null,null,0,null,null,null,null,0]
[null,null,null,null,null,null,null,null,null,0,null,null,null,null,{"$f":"SUM(K134*E134)","v":0},null,null,null,null,{"$f":"SUM(E134 *P134)","v":0}]
[null,null,null,null,null,null,null,null,null,{"$f":"SUM(F135 * E135)","v":0},null,null,null,null,0,null,null,null,null,0]
[null,null,null,null,null,null,null,null,null,0,null,null,null,null,0,null,null,null,null,0]
[null,null,null,null,null,null,null,null,null,0,null,null,null,null,0,null,null,null,null,0]
[null,null,null,null,null,null,null,null,null,0,null,null,null,null,0,null,null,null,null,0]
[null,null,null,null,null,null,null,null,null,0,null,null,null,null,0,null,null,null,null,0]
[null,null,null,null,null,null,null,null,null,0,null,null,null,null,0,null,null,null,null,0]
[null,null,null,null,null,null,null,null,null,0,null,null,null,null,0,null,null,null,null,0]
[null,null,null,null,null,null,null,null,null,0,null,null,null,null,0,null,null,null,null,0]
[null,null,null,null,null,null,null,null,null,0,null,null,null,null,0,null,null,null,null,0]
[null,null,null,null,null,null,null,null,null,0,null,null,null,null,0,null,null,null,null,0]
[null,null,null,null,null,null,null,null,null,0,null,null,null,null,0,null,null,null,null,0]
[null,null,null,null,null,null,null,null,null,0,null,null,null,null,0,null,null,null,null,0]
[null,null,null,null,null,null,null,null,null,0,null,null,null,null,0,null,null,null,null,0]
[null,null,null,null,null,null,null,null,null,0,null,null,null,null,0,null,null,null,null,0]
[null,null,null,null,null,null,null,null,null,0,null,null,null,null,0,null,null,null,null,0]
[null,null,null,null,null,null,null,null,null,0,null,null,null,null,0,null,null,null,null,0]
[null,null,null,null,null,null,null,null,null,0,null,null,null,null,0,null,null,null,null,0]
[null,null,null,null,null,null,null,null,null,0,null,null,null,null,0,null,null,null,null,0]
[null,null,null,null,null,null,null,null,null,0,null,null,null,null,0,null,null,null,null,0]
[null,null,null,null,null,null,null,null,null,0,null,null,null,null,0,null,null,null,null,0]
[null,null,null,null,null,null,null,null,null,0,null,null,null,null,0,null,null,null,null,0]
[null,null,null,null,null,null,null,null,null,0,null,null,null,null,0,null,null,null,null,0]
[null,null,null,null,null,null,null,null,null,0,null,null,null,null,0,null,null,null,null,0]
[null,null,null,null,null,null,null,null,null,0,null,null,null,null,0,null,null,null,null,0]
[null,null,null,null,null,null,null,null,null,0,null,null,null,null,0,null,null,null,null,0]
[null,null,null,null,null,null,null,null,null,0,null,null,null,null,0,null,null,null,null,0]
[null,null,null,null,null,null,null,null,null,0,null,null,null,null,0,null,null,null,null,0]
[null,null,null,null,null,null,null,null,null,0,null,null,null,null,0,null,null,null,null,0]
[null,null,null,null,null,null,null,null,null,0,null,null,null,null,0,null,null,null,null,0]
[null,null,null,null,null,null,null,null,null,0,null,null,null,null,0,null,null,null,null,0]
[null,null,null,null,null,null,null,null,null,0,null,null,null,null,0,null,null,null,null,0]
[null,null,null,null,null,null,null,null,null,0,null,null,null,null,0,null,null,null,null,0]
[null,null,null,null,null,null,null,null,null,0,null,null,null,null,0,null,null,null,null,0]
[null,null,null,null,null,null,null,null,null,0,null,null,null,null,0,null,null,null,null,0]
[null,null,null,null,null,null,null,null,null,0,null,null,null,null,0,null,null,null,null,0]
[null,null,null,null,null,null,null,null,null,0,null,null,null,null,0,null,null,null,null,0]
[null,null,null,null,null,null,null,null,null,0,null,null,null,null,0,null,null,null,null,0]
[null,null,null,null,null,null,null,null,null,0,null,null,null,null,0,null,null,null,null,0]
[null,null,null,null,null,null,null,null,null,0,null,null,null,null,0,null,null,null,null,0]
[null,null,null,null,null,null,null,null,null,0,null,null,null,null,0,null,null,null,null,0]
[null,null,null,null,null,null,null,null,null,0,null,null,null,null,0,null,null,null,null,0]
[null,null,null,null,null,null,null,null,null,0,null,null,null,null,0,null,null,null,null,0]
[null,null,null,null,null,null,null,null,null,0,null,null,null,null,0,null,null,null,null,0]
[null,null,null,null,null,null,null,null,null,0,null,null,null,null,0,null,null,null,null,0]
[null,null,null,null,null,null,null,null,null,0,null,null,null,null,0,null,null,null,null,0]
[null,null,null,null,null,null,null,null,null,0,null,null,null,null,0,null,null,null,null,0]
[null,null,null,null,null,null,null,null,null,0,null,null,null,null,0,null,null,null,null,0]
[null,null,null,null,null,null,null,null,null,0,null,null,null,null,0,null,null,null,null,0]
[null,null,null,null,null,null,null,null,null,0,null,null,null,null,0,null,null,null,null,0]
[null,null,null,null,null,null,null,null,null,0,null,null,null,null,0,null,null,null,null,0]
[null,null,null,null,null,null,null,null,null,0,null,null,null,null,0,null,null,null,null,0]
[null,null,null,null,null,null,null,null,null,0,null,null,null,null,0,null,null,null,null,0]
[null,null,null,null,null,null,null,null,null,0,null,null,null,null,0,null,null,null,null,0]
[null,null,null,null,null,null,null,null,null,0,null,null,null,null,0,null,null,null,null,0]
[null,null,null,null,null,null,null,null,null,0,null,null,null,null,0,null,null,null,null,0]
[null,null,null,null,null,null,null,null,null,0,null,null,null,null,0,null,null,null,null,0]
[null,null,null,null,null,null,null,null,null,0,null,null,null,null,0,null,null,null,null,0]
[null,null,null,null,null,null,null,null,null,0,null,null,null,null,0,null,null,null,null,0]
[null,null,null,null,null,null,null,null,null,0,null,null,null,null,0,null,null,null,null,0]
[null,null,null,null,null,null,null,null,null,0,null,null,null,null,0,null,null,null,null,0]
[null,null,null,null,null,null,null,null,null,0,null,null,null,null,0,null,null,null,null,0]
[null,null,null,null,null,null,null,null,null,0,null,null,null,null,0,null,null,null,null,0]
[null,null,null,null,null,null,null,null,null,0,null,null,null,null,0,null,null,null,null,0]
[null,null,null,null,null,null,null,null,null,0,null,null,null,null,{"$f":"SUM(K198*E198)","v":0},null,null,null,null,{"$f":"SUM(E198 *P198)","v":0}]
[null,null,null,null,null,null,null,null,null,{"$f":"SUM(F199 * E199)","v":0},null,null,null,null,0,null,null,null,null,0]
[null,null,null,null,null,null,null,null,null,0,null,null,null,null,0,null,null,null,null,0]
[null,null,null,null,null,null,null,null,null,0,null,null,null,null,0,null,null,null,null,0]
[null,null,null,null,null,null,null,null,null,0,null,null,null,null,0,null,null,null,null,0]
[null,null,null,null,null,null,null,null,null,0,null,null,null,null,0,null,null,null,null,0]
[null,null,null,null,null,null,null,null,null,0,null,null,null,null,0,null,null,null,null,0]
[null,null,null,null,null,null,null,null,null,0,null,null,null,null,0,null,null,null,null,0]
[null,null,null,null,null,null,null,null,null,0,null,null,null,null,0,null,null,null,null,0]
[null,null,null,null,null,null,null,null,null,0,null,null,null,null,0,null,null,null,null,0]
[null,null,null,null,null,null,null,null,null,0,null,null,null,null,0,null,null,null,null,0]
[null,null,null,null,null,null,null,null,null,0,null,null,null,null,0,null,null,null,null,0]
[null,null,null,null,null,null,null,null,null,0,null,null,null,null,0,null,null,null,null,0]
[null,null,null,null,null,null,null,null,null,0,null,null,null,null,0,null,null,null,null,0]
[null,null,null,null,null,null,null,null,null,0,null,null,null,null,0,null,null,null,null,0]
[null,null,null,null,null,null,null,null,null,0,null,null,null,null,0,null,null,null,null,0]
[null,null,null,null,null,null,null,null,null,0,null,null,null,null,0,null,null,null,null,0]
[null,null,null,null,null,null,null,null,null,0,null,null,null,null,0,null,null,null,null,0]
[null,null,null,null,null,null,null,null,null,0,null,null,null,null,0,null,null,null,null,0]
[null,null,null,null,null,null,null,null,null,0,null,null,null,null,0,null,null,null,null,0]
[null,null,null,null,null,null,null,null,null,0,null,null,null,null,0,null,null,null,null,0]
[null,null,null,null,null,null,null,null,null,0,null,null,null,null,0,null,null,null,null,0]
[null,null,null,null,null,null,null,null,null,0,null,null,null,null,0,null,null,null,null,0]
[null,null,null,null,null,null,null,null,null,0,null,null,null,null,0,null,null,null,null,0]
[null,null,null,null,null,null,null,null,null,0,null,null,null,null,0,null,null,null,null,0]
[null,null,null,null,null,null,null,null,null,0,null,null,null,null,0,null,null,null,null,0]
[null,null,null,null,null,null,null,null,null,0,null,null,null,null,0,null,null,null,null,0]
[null,null,null,null,null,null,null,null,null,0,null,null,null,null,0,null,null,null,null,0]
[null,null,null,null,null,null,null,null,null,0,null,null,null,null,0,null,null,null,null,0]
[null,null,null,null,null,null,null,null,null,0,null,null,null,null,0,null,null,null,null,0]
[null,null,null,null,null,null,null,null,null,0,null,null,null,null,0,null,null,null,null,0]
[null,null,null,null,null,null,null,null,null,0,null,null,null,null,0,null,null,null,null,0]
[null,null,null,null,null,null,null,null,null,0,null,null,null,null,0,null,null,null,null,0]
[null,null,null,null,null,null,null,null,null,0,null,null,null,null,0,null,null,null,null,0]
[null,null,null,null,null,null,null,null,null,0,null,null,null,null,0,null,null,null,null,0]
[null,null,null,null,null,null,null,null,null,0,null,null,null,null,0,null,null,null,null,0]
[null,null,null,null,null,null,null,null,null,0,null,null,null,null,0,null,null,null,null,0]
[null,null,null,null,null,null,null,null,null,0,null,null,null,null,0,null,null,null,null,0]
[null,null,null,null,null,null,null,null,null,0,null,null,null,null,0,null,null,null,null,0]
[null,null,null,null,null,null,null,null,null,0,null,null,null,null,0,null,null,null,null,0]
[null,null,null,null,null,null,null,null,null,0,null,null,null,null,0,null,null,null,null,0]
[null,null,null,null,null,null,null,null,null,0,null,null,null,null,0,null,null,null,null,0]
[null,null,null,null,null,null,null,null,null,0,null,null,null,null,0,null,null,null,null,0]
[null,null,null,null,null,null,null,null,null,0,null,null,null,null,0,null,null,null,null,0]
[null,null,null,null,null,null,null,null,null,0,null,null,null,null,0,null,null,null,null,0]
[null,null,null,null,null,null,null,null,null,0,null,null,null,null,0,null,null,null,null,0]
[null,null,null,null,null,null,null,null,null,0,null,null,null,null,0,null,null,null,null,0]
[null,null,null,null,null,null,null,null,null,0,null,null,null,null,0,null,null,null,null,0]
[null,null,null,null,null,null,null,null,null,0,null,null,null,null,0,null,null,null,null,0]
[null,null,null,null,null,null,null,null,null,0,null,null,null,null,0,null,null,null,null,0]
[null,null,null,null,null,null,null,null,null,0,null,null,null,null,0,null,null,null,null,0]
[null,null,null,null,null,null,null,null,null,0,null,null,null,null,0,null,null,null,null,0]
[null,null,null,null,null,null,null,null,null,0,null,null,null,null,0,null,null,null,null,0]
[]
[null,null,null,null,null,null,null,null,null,{"$f":"SUM(J6:J250)","v":0},null,null,null,null,{"$f":"SUM(O6:O250)","v":0},null,null,null,null,{"$f":"SUM(T6:T250)","v":0}]